[Event "125-Jahre Werder Bremen 2024"]
[Site "Bremen"]
[Date "2024.03.04"]
[Round "3.7"]
[White "Kopylov, Daniel"]
[Black "Meins, Gerlef"]
[Result "1/2-1/2"]
[ECO "B67"]
[WhiteElo "2346"]
[BlackElo "2390"]
[Annotator "TA"]
[PlyCount "49"]
[EventDate "2024.02.26"]
[EventType "swiss"]
[EventCountry "GER"]
[SourceTitle "playchess.com"]
[Source "ChessBase"]
[SourceQuality "1"]
[TimeControl "40/6000+30:1800+30"]

{[%evp 21,49,62,62,62,46,31,34,26,78,31,44,46,77,70,88,6,7,7,11,0,66,0,0,0,0,0,0,0,0,0]} 1. e4 {[%emt 0:00:07]} c5 {[%emt 0:00:08]} 2. Nf3 {[%emt 0:00:13]} Nc6 {[%emt 0:00:20]} 3. d4 {[%emt 0:00:21]} cxd4 {[%emt 0:00:06]} 4. Nxd4 {[%emt 0:00:08]} Nf6 {[%emt 0:00:30]} 5. Nc3 {[%emt 0:00:09]} d6 {[%emt 0:00:46]} 6. Bg5 {[%emt 0:00:21]} e6 {[%emt 0:00:18]} 7. Qd2 {[%emt 0:00:15]} a6 {[%emt 0:01:00]} 8. O-O-O {[%emt 0:00:21]} Bd7 {[%emt 0:00:20]} 9. f4 {[%emt 0:00:31]} b5 {[%emt 0:07:41]} 10. Bxf6 {[%emt 0:02:56]} gxf6 {[%emt 0:05:05]} 11. f5 {[%emt 0:02:25]} Qb6 {[%emt 0:01:22]} 12. Nxc6 {[%emt 0:03:31]} Bxc6 {[%emt 0:00:11]} 13. Bd3 {[%emt 0:00:40]} O-O-O {[%emt 0:03:37]} 14. Kb1 {[%emt 0:01:58] White is slightly better.} Rg8 {[%emt 0:04:26]} (14... d5 $11) 15. fxe6 {[%emt 0:12:22]} (15. Rhf1 $16) 15... fxe6 $14 {[%emt 0:01:33]} 16. Rhf1 {[%emt 0:00:10]} Rg6 {[%emt 0:21:51]} 17. Ne2 {[%emt 0:09:34]} Rxg2 {[%emt 0:24:23] [#]} 18. Rxf6 {[%emt 0:04:11]} (18. Qc3 $1 $16) 18... Rxh2 $11 {[%emt 0:07:53]} 19. Rf7 {[%emt 0:41:16]} Bh6 {[%emt 0:13:07] Wards off Qf4} 20. Qc3 {[%emt 0:03:38][%mdl 1024] White has compensation.} Be3 {[%emt 0:00:52] Inhibits Nd4.} ({Black should try} 20... Qc5 $11) 21. e5 {[%emt 0:07:28]} ({Better is} 21. Rf3 $14 b4 22. Qc4) 21... Qc5 {[%emt 0:03:02] The position is equal.} 22. Qa5 {[%emt 0:00:49]} Qb6 {[%emt 0:00:26]} ({Stronger than} 22... Qxe5 23. Qc7#) 23. Qc3 {[%emt 0:00:53] Black must now prevent exd6. Dancing on a razor blade.} Qc5 {[%emt 0:00:07]} 24. Qa5 {[%emt 0:04:55]} Qb6 {[%emt 0:00:05]} ({And not} 24... Qxe5 25. Qc7#) 25. Qc3 {[%emt 0:01:35] Weighted Error Value: White=0.16 (very precise) /Black=0.15 (very precise) .  Mistake:       	White=3     	Black=2      Inaccurate:     	---       	Black=1      OK:         	White=7     	Black=6} 1/2-1/2

[Event "125-Jahre Werder Bremen 2024"]
[Site "Bremen"]
[Date "2024.03.04"]
[Round "3.8"]
[White "Gloeckler, Christian"]
[Black "Kopylov, Michael"]
[Result "1-0"]
[ECO "B23"]
[WhiteElo "2356"]
[BlackElo "2352"]
[Annotator "TA"]
[PlyCount "49"]
[EventDate "2024.02.26"]
[EventType "swiss"]
[EventCountry "GER"]
[SourceTitle "playchess.com"]
[Source "ChessBase"]
[SourceQuality "1"]
[TimeControl "40/6000+30:1800+30"]

{[%evp 9,49,0,0,-13,25,33,32,40,38,30,45,33,50,24,35,37,35,41,96,88,91,88,85,77,109,117,120,120,121,136,163,173,497,491,476,485,475,448,444,443,442,439]} 1. e4 {[%emt 0:00:02]} c5 {[%emt 0:00:15]} 2. Nc3 {[%emt 0:00:09]} d6 {[%emt 0:02:14]} 3. d4 {[%emt 0:00:10]} cxd4 {[%emt 0:00:26]} 4. Qxd4 {[%emt 0:00:06]} Nc6 {[%emt 0:00:50]} 5. Qd2 {[%emt 0:00:06]} Nf6 {[%emt 0:00:39]} 6. b3 {[%emt 0:00:08]} g6 {[%emt 0:04:47]} 7. Bb2 {[%emt 0:00:11]} Bg7 {[%emt 0:00:07][%cal Of6e4]} 8. O-O-O {[%emt 0:00:10] White is slightly better.} O-O {[%emt 0:00:14]} 9. f3 {[%emt 0:00:43]} Qa5 {[%emt 0:09:37]} 10. Kb1 {[%emt 0:02:15]} Bd7 {[%emt 0:03:33]} 11. h4 {[%emt 0:04:51]} Rfc8 {[%emt 0:03:36]} 12. Nge2 {[%emt 0:01:35]} Rab8 {[%emt 0:19:24]} 13. g4 {[%emt 0:12:54][%cal Oh4h5,Bg2g4,Bg4g5][%mdl 32]} Ne5 {[%emt 0:06:36]} (13... h5 $14) 14. Bg2 {[%emt 0:02:56]} b5 {[%emt 0:04:13] [#]} 15. g5 $1 {[%emt 0:07:45]} Nh5 {[%emt 0:12:50][%cal Oe5c4] Hoping for ...Nc4!} 16. Nd5 $1 {[%emt 0:03:24][%csl LRa5,LRe7]} Qxd2 {[%emt 0:01:42]} 17. Rxd2 {[%emt 0:00:10]} Kf8 {[%emt 0:00:37]} 18. f4 {[%emt 0:12:42]} Ng4 {[%emt 0:04:08]} 19. Bxg7+ {[%emt 0:02:04]} Kxg7 {[%emt 0:00:27]} 20. Bf3 {[%emt 0:15:30]} e5 {[%emt 0:09:37] [#]} (20... Kf8 {is more resistant.} 21. f5 Ne5 (21... gxf5 $2 22. exf5 Bxf5 23. Rg1 $18) 22. Bxh5 Bc6 23. fxg6 hxg6 24. Bxg6 fxg6) 21. f5 $1 $18 {[%emt 0:02:59][%mdl 512] White is clearly winning.} gxf5 {[%emt 0:23:53]} 22. exf5 {[%emt 0:00:39]} ({Weaker is} 22. Rg1 Nf4 23. Nexf4 exf4 24. exf5 (24. Nxf4 Ne5 $18) 24... Ne5 $18) 22... Bxf5 {[%emt 0:00:13]} 23. Ne7 {[%emt 0:01:14]} Be6 {[%emt 0:01:06]} 24. Nxc8 {[%emt 0:00:24]} ({Not} 24. Rxd6 Rc7 $18) 24... Rxc8 {[%emt 0:00:03]} 25. Rg1 {[%emt 0:01:30] Weighted Error Value: White=0.05 (flawless) /Black=0.31.  Mistake:       	---       	Black=2      Inaccurate:     	White=1     	Black=2      OK:         	White=9     	Black=6      Best:        	White=1     	---        Strong:       	White=1     	---        Brilliant:      	White=1     	---} ({Much less strong is} 25. Rxd6 e4 $18) 1-0

[Event "125-Jahre Werder Bremen 2024"]
[Site "Bremen"]
[Date "2024.03.04"]
[Round "3.9"]
[White "Knaak, Rainer"]
[Black "Wiegmann, Sascha"]
[Result "1/2-1/2"]
[ECO "D27"]
[WhiteElo "2450"]
[BlackElo "2297"]
[Annotator "RC"]
[PlyCount "102"]
[EventDate "2024.02.26"]
[EventType "swiss"]
[EventCountry "GER"]
[SourceTitle "playchess.com"]
[Source "ChessBase"]
[SourceQuality "1"]
[TimeControl "40/6000+30:1800+30"]

1. d4 {[%emt 0:00:05]} d5 {[%emt 0:00:02]} 2. c4 {[%emt 0:00:11]} dxc4 {[%emt 0:00:02]} 3. e3 {[%emt 0:00:34]} Nf6 {[%emt 0:02:36]} 4. Bxc4 {[%emt 0:00:20]} e6 {[%emt 0:00:16]} 5. Nf3 {[%emt 0:00:10]} a6 {[%emt 0:00:20]} 6. O-O {[%emt 0:00:20]} c5 {[%emt 0:00:11]} 7. b3 {[%emt 0:01:20]} cxd4 {[%emt 0:08:46]} 8. Nxd4 {[%emt 0:01:12]} Nbd7 {[%emt 0:04:12]} 9. Bb2 {[%emt 0:00:39]} b5 {[%emt 0:08:23]} 10. Be2 {[%emt 0:03:00]} Bb7 {[%emt 0:03:25]} 11. Nd2 {[%emt 0:02:37]} Be7 {[%emt 0:05:19]} 12. a4 {[%emt 0:10:35]} b4 {[%emt 0:05:42]} 13. Bf3 {[%emt 0:16:06]} Nd5 {[%emt 0:08:03]} 14. Nc4 {[%emt 0:10:32]} O-O {[%emt 0:00:42]} 15. e4 {[%emt 0:10:43]} Nc3 {[%emt 0:13:28]} 16. Bxc3 {[%emt 0:21:57]} bxc3 {[%emt 0:00:03]} 17. Ne2 {[%emt 0:00:36]} Bb4 {[%emt 0:09:30]} 18. Qc2 {[%emt 0:05:07]} Nc5 {[%emt 0:01:38]} 19. Rfd1 {[%emt 0:00:41]} Qc7 {[%emt 0:01:23]} 20. Nxc3 {[%emt 0:01:36]} Bxc3 {[%emt 0:02:00]} 21. Qxc3 {[%emt 0:00:04]} Bxe4 {[%emt 0:00:14]} 22. Bxe4 {[%emt 0:06:02]} Nxe4 {[%emt 0:02:25]} 23. Qe3 {[%emt 0:00:04]} Nf6 {[%emt 0:03:09]} 24. Qb6 {[%emt 0:03:08]} Rfc8 {[%emt 0:13:00]} 25. Qxc7 {[%emt 0:04:51]} Rxc7 {[%emt 0:00:02]} 26. Nb6 {[%emt 0:00:17]} Rb8 {[%emt 0:00:55]} 27. a5 {[%emt 0:01:16]} g6 {[%emt 0:03:38]} 28. Rac1 {[%emt 0:01:31]} Rxc1 {[%emt 0:05:07]} 29. Rxc1 {[%emt 0:00:04]} Nd5 {[%emt 0:01:24]} 30. Rc6 {[%emt 0:00:27]} Rd8 {[%emt 0:00:05]} 31. g3 {[%emt 0:01:16]} Nb4 {[%emt 0:02:15]} 32. Rc4 {[%emt 0:00:35]} Rd1+ {[%emt 0:00:27]} 33. Kg2 {[%emt 0:00:03]} Nd3 {[%emt 0:00:05]} 34. Rc8+ {[%emt 0:03:30]} Kg7 {[%emt 0:00:00]} 35. Nc4 {[%emt 0:00:16]} e5 {[%emt 0:06:01]} 36. Re8 {[%emt 0:04:10]} Rb1 {[%emt 0:00:47]} 37. Re7 {[%emt 0:00:32]} Rxb3 {[%emt 0:01:04]} 38. Ra7 {[%emt 0:00:10]} h5 {[%emt 0:01:09]} 39. h4 {[%emt 0:00:28]} Kg8 {[%emt 0:01:21]} 40. Ra8+ {[%emt 0:01:17]} Kg7 {[%emt 0:00:03]} 41. Ra7 {[%emt 0:04:53]} Kg8 {[%emt 0:15:37]} 42. Rxa6 {[%emt 0:10:49]} Rb4 {[%emt 0:05:22]} 43. Rc6 {[%emt 0:05:38]} e4 {[%emt 0:04:08]} 44. a6 {[%emt 0:05:47]} Ra4 {[%emt 0:01:03]} 45. Nd2 {[%emt 0:00:32]} f5 {[%emt 0:01:31]} 46. Rxg6+ {[%emt 0:01:45]} Kf7 {[%emt 0:00:14]} 47. Rc6 {[%emt 0:00:26]} Ra2 {[%emt 0:00:49]} 48. Nc4 {[%emt 0:02:42]} Ne1+ {[%emt 0:03:00]} 49. Kf1 {[%emt 0:01:35]} Nf3 {[%emt 0:00:02]} 50. Ne3 {[%emt 0:01:07]} Ra1+ {[%emt 0:00:52]} 51. Kg2 {[%emt 0:00:05]} Rg1+ {[%emt 0:01:00]} 1/2-1/2

[Event "125-Jahre Werder Bremen 2024"]
[Site "Bremen"]
[Date "2024.03.04"]
[Round "3.10"]
[White "Pajeken, Jakob Leon"]
[Black "Radeva, Viktoria"]
[Result "1-0"]
[ECO "C11"]
[WhiteElo "2424"]
[BlackElo "2325"]
[Annotator "TA"]
[PlyCount "97"]
[EventDate "2024.02.26"]
[EventType "swiss"]
[EventCountry "GER"]
[SourceTitle "playchess.com"]
[Source "ChessBase"]
[SourceQuality "1"]
[TimeControl "40/6000+30:1800+30"]

{[%evp 27,97,22,33,23,56,3,33,9,37,24,23,26,54,35,42,38,56,36,33,44,41,52,50,39,42,44,45,36,42,8,49,21,22,21,22,23,17,28,78,77,108,68,177,168,196,219,225,222,220,164,193,155,421,438,397,409,236,230,715,733,592,420,633,682,958,884,1097,1070,1802,1706,1997,1984]} 1. e4 {[%emt 0:00:33]} e6 {[%emt 0:00:16]} 2. d4 {[%emt 0:00:07]} d5 {[%emt 0:00:02]} 3. Nc3 {[%emt 0:00:05]} Nf6 {[%emt 0:00:07]} 4. e5 {[%emt 0:00:03]} Nfd7 {[%emt 0:00:05]} 5. f4 {[%emt 0:00:03]} c5 {[%emt 0:00:16]} 6. Nf3 {[%emt 0:00:04]} Nc6 {[%emt 0:00:07]} 7. Be3 {[%emt 0:00:04]} a6 {[%emt 0:00:09]} 8. a3 {[%emt 0:00:15]} cxd4 {[%emt 0:00:54]} 9. Nxd4 {[%emt 0:00:23]} Nxd4 {[%emt 0:02:30] C11: French: Classical System: 4 e5 and 4 Bg5 dxe4.} 10. Bxd4 {[%emt 0:03:01]} Bc5 {[%emt 0:00:13]} 11. Bxc5 {[%emt 0:01:20]} Nxc5 {[%emt 0:00:08]} 12. Qd4 {[%emt 0:00:43]} Qb6 {[%emt 0:04:22]} 13. O-O-O {[%emt 0:02:46]} Nd7 {[%emt 0:07:23]} 14. Qd2 $146 {[%emt 0:12:54]} ({Predecessor:} 14. Qxb6 Nxb6 15. a4 Bd7 16. Rd4 Nc8 17. Rb4 Ra7 18. Ne2 Ne7 19. Nd4 Kd8 20. a5 {½-½ Tomczak,J (2461)-Mustafaev,J (2393) Wch U18 Vung Tau 2008 (4)}) 14... O-O {[%emt 0:05:04]} 15. g4 {[%emt 0:12:48]} Qc7 {[%emt 0:09:32]} 16. Bg2 {[%emt 0:04:12]} (16. g5 $14) 16... Nb6 {[%emt 0:06:05]} 17. Rhf1 {[%emt 0:12:33]} Bd7 {[%emt 0:03:28]} 18. Qd4 {[%emt 0:04:48]} Rac8 {[%emt 0:13:36]} 19. Rf3 {[%emt 0:03:38]} Qc5 {[%emt 0:06:23]} 20. Bf1 {[%emt 0:07:29]} (20. Qxc5 {simplifies} Rxc5 21. Ne2 Nc4 22. Nd4) 20... Na4 {[%emt 0:09:52]} 21. Qxc5 {[%emt 0:00:41]} Rxc5 {[%emt 0:00:43]} 22. Nxa4 {[%emt 0:03:37]} Bxa4 {[%emt 0:00:09]} 23. b3 {[%emt 0:00:53]} Bb5 {[%emt 0:01:46]} 24. Bxb5 {[%emt 0:00:18]} Rxb5 {[%emt 0:00:41]} 25. Rc3 {[%emt 0:01:06]} f6 {[%emt 0:02:30]} 26. exf6 {[%emt 0:01:05]} Rxf6 {[%emt 0:00:54]} 27. Rd4 {[%emt 0:01:07]} Rb6 {[%emt 0:03:00]} 28. Kd2 {[%emt 0:03:50]} Rd6 {[%emt 0:10:21]} 29. Rc8+ {[%emt 0:02:44]} Rf8 {[%emt 0:00:10]} 30. Rxf8+ {[%emt 0:01:17]} Kxf8 {[%emt 0:00:02]} 31. c4 {[%emt 0:00:29]} Ke7 {[%emt 0:00:41]} 32. c5 {[%emt 0:00:49]} Rc6 {[%emt 0:01:26]} (32... Rd7 $1 $11) 33. Rb4 $1 $16 {[%emt 0:00:07]} Rc7 {[%emt 0:07:57]} 34. Rb6 {[%emt 0:02:03]} h5 {[%emt 0:02:52]} (34... Rxc5 $14 35. Rxb7+ Kf6) 35. g5 $1 $18 {[%emt 0:02:13]} (35. gxh5 Rxc5 36. Rxb7+ Kf6 $11) 35... Kf7 {[%emt 0:04:51]} 36. b4 {[%emt 0:01:22]} Kg6 {[%emt 0:03:21]} 37. Ke3 $1 {[%emt 0:07:03]} (37. Rxe6+ Kf5 38. Re5+ Kxf4 39. Rxd5 h4 $16) 37... Kf5 {[%emt 0:00:16] [#]} 38. Rd6 $1 {[%emt 0:00:15]} a5 {[%emt 0:05:00]} 39. h3 {[%emt 0:00:27]} (39. bxa5 $2 Rxc5 40. Rd7 Rxa5 41. Rf7+ Kg6 (41... Kg4 42. g6 $17) 42. Rxb7 Rxa3+ 43. Kd4 Rf3 $19) 39... axb4 $2 {[%emt 0:00:32]} (39... h4 $16 40. Rd8 (40. bxa5 $2 {is the wrong capture.} Rxc5 41. a4 Rxa5 $19) 40... Kg6) 40. axb4 $18 {[%emt 0:00:04]} h4 {[%emt 0:01:30] [#]} 41. Rd8 $1 {[%emt 0:31:21]} Kg6 {[%emt 0:07:53]} 42. Re8 {[%emt 0:00:00]} Kf7 $2 {[%emt 0:03:09]} (42... Kf5 43. Rf8+ Kg6) 43. Rb8 $18 {[%emt 0:00:00]} Kg6 {[%emt 0:01:57]} 44. Rd8 {[%emt 0:00:00]} Rf7 {[%emt 0:06:18]} (44... Kf5 $142 45. Rd6 (45. Rf8+ Kg6 $16) 45... d4+ 46. Rxd4 (46. Kxd4 Kxf4 47. Rxe6 Rd7+ 48. Kc4 Kxg5 $16) 46... b6 47. cxb6 Rc3+ 48. Kd2 Rc6) 45. b5 $18 {[%emt 0:00:00]} Kf5 {[%emt 0:00:36]} 46. b6 {[%emt 0:00:00]} Kg6 {[%emt 0:04:58]} 47. Rc8 {[%emt 0:00:00]} e5 {[%emt 0:00:09]} 48. fxe5 {[%emt 0:00:00]} Kxg5 {[%emt 0:01:16]} 49. Rc7 {[%emt 0:00:00]} 1-0

[Event "125-Jahre Werder Bremen 2024"]
[Site "Bremen"]
[Date "2024.03.04"]
[Round "3.11"]
[White "Reuker, Jari"]
[Black "Colbow, Collin"]
[Result "1/2-1/2"]
[ECO "E11"]
[WhiteElo "2383"]
[BlackElo "2373"]
[Annotator "TA"]
[PlyCount "93"]
[EventDate "2024.02.26"]
[EventType "swiss"]
[EventCountry "GER"]
[SourceTitle "playchess.com"]
[Source "ChessBase"]
[SourceQuality "1"]
[TimeControl "40/6000+30:1800+30"]

{[%evp 13,93,14,0,4,10,0,8,0,45,21,22,9,48,47,59,54,102,104,111,104,102,114,100,108,104,59,72,33,36,0,0,0,0,-23,-20,-16,-16,-35,0,-32,-28,-51,-52,-43,-50,-50,-50,-50,-50,-57,-55,-57,-52,-54,-40,-52,-20,-29,-23,-29,-46,-53,-53,-53,-53,-53,0,0,0,0,0,0,0,0,0,0,0,0,0,0,0,0]} 1. d4 {[%emt 0:00:03]} Nf6 {[%emt 0:06:32]} 2. c4 {[%emt 0:00:08]} e6 {[%emt 0:00:07]} 3. g3 {[%emt 0:00:47]} d5 {[%emt 0:00:08]} 4. Nf3 {[%emt 0:00:11]} Bb4+ {[%emt 0:00:07]} 5. Bd2 {[%emt 0:00:08]} Be7 {[%emt 0:00:09]} 6. Bg2 {[%emt 0:00:07]} O-O {[%emt 0:00:09]} 7. O-O {[%emt 0:00:08]} Nbd7 {[%emt 0:00:18]} 8. b4 {[%emt 0:00:14][%cal Bb2b4,Bb4b5][%mdl 32]} c6 {[%emt 0:09:45]} 9. Qb3 {[%emt 0:02:00]} Ne4 {[%emt 0:06:06]} 10. a4 {[%emt 0:00:38]} f5 {[%emt 0:08:34]} 11. Rc1 {[%emt 0:14:37]} g5 {[%emt 0:04:45][%cal Bg7g5,Bg5g4][%mdl 32]} 12. b5 {[%emt 0:16:14]} Bf6 {[%emt 0:09:48]} 13. e3 {[%emt 0:04:44]} g4 {[%emt 0:02:24]} 14. Ne1 {[%emt 0:01:05]} dxc4 {[%emt 0:13:40]} (14... Rf7 $14) 15. Qxc4 $16 {[%emt 0:08:37]} Nb6 {[%emt 0:11:58]} 16. Qa2 {[%emt 0:06:23]} cxb5 {[%emt 0:10:07]} 17. axb5 {[%emt 0:01:05]} a6 {[%emt 0:02:46]} 18. Qb3 {[%emt 0:04:53]} Qd5 {[%emt 0:02:07]} 19. Qxd5 {[%emt 0:01:08]} Nxd5 {[%emt 0:05:59]} 20. Nd3 {[%emt 0:01:07]} b6 {[%emt 0:00:37]} 21. Nb4 {[%emt 0:09:41]} a5 {[%emt 0:00:43]} 22. Nxd5 {[%emt 0:08:30]} exd5 {[%emt 0:00:04]} 23. Nc3 {[%emt 0:01:34]} Bb7 {[%emt 0:01:59]} 24. Be1 {[%emt 0:01:42]} Rfc8 {[%emt 0:03:06][%cal Oa5a4]} 25. Na4 {[%emt 0:02:38]} Bd8 {[%emt 0:00:25]} 26. Bc3 {[%emt 0:14:46][%cal Be1c3,Bc3b2,Bb2a3,Ba3f8][%mdl 32]} Rab8 {[%emt 0:03:53]} 27. Bb2 {[%emt 0:01:49]} Rxc1+ {[%emt 0:03:53]} 28. Rxc1 {[%emt 0:00:07]} Rc8 {[%emt 0:00:15]} 29. Rxc8 {[%emt 0:01:40]} Bxc8 {[%emt 0:00:01]} 30. Ba3 {[%emt 0:00:15]} Bd7 {[%emt 0:01:28]} 31. Bf1 {[%emt 0:00:32]} Kf7 {[%emt 0:00:53]} 32. Bd3 {[%emt 0:01:45]} h5 {[%emt 0:00:52]} 33. Kf1 {[%emt 0:02:08]} Kg6 {[%emt 0:01:13]} 34. Ke2 {[%emt 0:00:39]} Kg5 {[%emt 0:00:33]} 35. Bf8 {[%emt 0:01:01]} h4 {[%emt 0:00:33]} 36. gxh4+ {[%emt 0:01:49]} Kxh4 {[%emt 0:00:08] ...Kh3 is the strong threat.} 37. Bg7 {[%emt 0:00:14]} Kh3 $1 {[%emt 0:02:05]} 38. Be5 {[%emt 0:00:08]} Kg2 {[%emt 0:00:44]} 39. Bg3 {[%emt 0:01:41]} Nxg3+ {[%emt 0:00:33]} ({Black should play} 39... Kg1 $15) 40. hxg3 $15 {[%emt 0:00:06][%mdl 4096] Endgame. KBB-KBN. The position is equal.} Bc7 {[%emt 0:00:27]} 41. Nc3 {[%emt 0:04:13]} Be6 {[%emt 0:00:26]} 42. Bc2 {[%emt 0:13:24]} Bd6 {[%emt 0:21:32]} 43. Bb3 {[%emt 0:02:05]} Kg1 {[%emt 0:01:21]} 44. Bxd5 {[%emt 0:09:01]} Bxd5 {[%emt 0:01:20]} 45. Nxd5 {[%emt 0:00:06]} a4 {[%emt 0:00:01]} 46. Nc3 $1 {[%emt 0:02:16]} a3 {[%emt 0:00:08]} 47. Na2 {[%emt 0:01:48] Weighted Error Value: White=0.10 (very precise) /Black=0.10 (very precise) .  Mistake:       	---       	Black=2      Inaccurate:     	White=4     	Black=4      OK:         	White=14    	Black=16     Best:        	---       	Black=2      Strong:       	White=1     	Black=1} 1/2-1/2

[Event "125-Jahre Werder Bremen 2024"]
[Site "Bremen"]
[Date "2024.03.04"]
[Round "3.12"]
[White "Breutigam, Martin"]
[Black "Guichard, Pauline"]
[Result "1-0"]
[ECO "E51"]
[WhiteElo "2359"]
[BlackElo "2385"]
[Annotator "TA"]
[PlyCount "89"]
[EventDate "2024.02.26"]
[EventType "swiss"]
[EventCountry "GER"]
[SourceTitle "playchess.com"]
[Source "ChessBase"]
[SourceQuality "1"]
[TimeControl "40/6000+30:1800+30"]

{[%evp 13,89,7,2,0,0,4,7,12,25,12,8,8,9,11,6,0,2,0,36,39,37,39,34,31,33,22,30,40,46,19,19,13,12,6,9,21,8,8,27,10,97,84,155,163,175,168,217,206,220,215,196,213,268,219,473,451,452,460,504,481,474,489,530,491,543,516,648,642,645,657,678,641,29978,29979,29979,29980,29984,29985]} 1. d4 {[%emt 0:00:04]} Nf6 {[%emt 0:00:04]} 2. c4 {[%emt 0:00:41]} e6 {[%emt 0:00:11]} 3. Nc3 {[%emt 0:00:12]} Bb4 {[%emt 0:00:10]} 4. e3 {[%emt 0:00:33]} O-O {[%emt 0:00:23]} 5. Bd2 {[%emt 0:00:05]} d5 {[%emt 0:01:08]} 6. Nf3 {[%emt 0:00:35]} b6 {[%emt 0:00:18][%cal Bb7b6,Bb6c5,Bc5c4][%mdl 32]} 7. cxd5 {[%emt 0:00:34]} exd5 {[%emt 0:00:08]} 8. Rc1 {[%emt 0:00:15]} Be7 {[%emt 0:08:19]} 9. Bd3 {[%emt 0:02:25]} Bb7 {[%emt 0:00:08]} 10. O-O {[%emt 0:01:09] The position is equal.} c5 {[%emt 0:01:13]} 11. dxc5 {[%emt 0:04:22]} bxc5 {[%emt 0:00:30]} 12. Re1 {[%emt 0:01:07]} Nbd7 {[%emt 0:15:35]} 13. e4 {[%emt 0:05:12]} c4 {[%emt 0:10:05]} 14. Bb1 {[%emt 0:03:58]} dxe4 {[%emt 0:00:19]} 15. Nxe4 {[%emt 0:01:09]} Nxe4 {[%emt 0:00:08]} 16. Bxe4 {[%emt 0:00:06]} Bxe4 {[%emt 0:00:06]} 17. Rxe4 {[%emt 0:00:05]} Bf6 {[%emt 0:00:09]} 18. Bc3 {[%emt 0:03:21]} Bxc3 {[%emt 0:00:50]} 19. Rxc3 {[%emt 0:10:41][%cal Oe4d4] [#] And now Rd4! would win.} Nb6 {[%emt 0:00:13]} 20. Qe2 {[%emt 0:03:27]} Re8 {[%emt 0:01:20]} 21. Rxe8+ {[%emt 0:04:03]} Qxe8 {[%emt 0:00:07]} 22. Re3 {[%emt 0:00:08]} Qa4 {[%emt 0:07:34]} 23. h4 {[%emt 0:02:26]} h6 {[%emt 0:08:08]} 24. a3 {[%emt 0:03:50]} Rd8 {[%emt 0:03:52]} 25. Kh2 {[%emt 0:02:20]} Qb5 {[%emt 0:07:16]} 26. g3 {[%emt 0:07:08]} Kf8 {[%emt 0:13:14]} (26... Nc8 $11) 27. Ne5 $16 {[%emt 0:18:49][%cal Oa3a4,Bf3e5,Be5c4,Bc4e3][%mdl 32] White leaves nothing to chance now.} Re8 {[%emt 0:05:16] [#]} (27... Kg8 $142) 28. b3 $1 {[%emt 0:01:51][%mdl 512] Strongly threatening a4.} Kg8 {[%emt 0:02:32]} 29. Nxc4 {[%emt 0:03:04]} ({Resist} 29. bxc4 Qc5 $16) 29... Rxe3 {[%emt 0:00:52]} (29... Rc8 $142 30. Nxb6 Qxe2 31. Rxe2 axb6) 30. Qxe3 $18 {[%emt 0:00:26][%mdl 4096] Endgame. KQN-KQN} Nc8 {[%emt 0:10:31]} 31. Qd4 {[%emt 0:06:44] Hoping for Qd8+.} Kh7 {[%emt 0:01:21]} 32. b4 {[%emt 0:05:31]} Qf5 {[%emt 0:02:20]} 33. Kg2 {[%emt 0:01:29]} Ne7 $2 {[%emt 0:09:25]} (33... Qb5 34. Ne3 Qb7+ 35. Kg1 Ne7) 34. Ne3 {[%emt 0:03:12]} ({Not} 34. Qxa7 Qe4+ 35. Kg1 (35. Kh2 Nf5 $18) 35... Qxc4 $18) 34... Qe6 {[%emt 0:00:05]} 35. Qxa7 {[%emt 0:03:24]} Nc6 {[%emt 0:00:11]} 36. Qc5 {[%emt 0:02:24]} Qe4+ {[%emt 0:00:05]} 37. f3 {[%emt 0:00:22]} Qe8 {[%emt 0:00:07]} 38. Qf5+ {[%emt 0:00:47]} g6 {[%emt 0:00:25]} 39. Qe4 {[%emt 0:00:12]} Qd7 {[%emt 0:00:38]} 40. Nd5 {[%emt 0:01:19]} Qd6 {[%emt 0:00:22] Against Nf6+} 41. b5 {[%emt 0:32:49][%cal Bb4b5,Bb5b6][%mdl 32]} f5 {[%emt 0:31:34]} 42. Qc4 {[%emt 0:00:22]} Ne7 {[%emt 0:01:09]} 43. Nxe7 {[%emt 0:00:29] White mates.} Qxe7 {[%emt 0:00:06]} 44. b6 {[%emt 0:01:17]} Qxa3 {[%emt 0:00:15]} 45. Qc7+ {[%emt 0:00:13] Weighted Error Value: White=0.05 (flawless) /Black=0.29 (precise) .  Mistake:       	---       	Black=4      Inaccurate:     	White=1     	Black=1      OK:         	White=16    	Black=13     Best:        	---       	Black=2      Brilliant:      	White=1     	---} 1-0